[Event "Titled Tuesday Blitz May 10 Early 2022"]
[White "Khumalo, Keith"]
[Black "Girinath, P.D.S."]
[WhiteFideId "14319470"]
[BlackFideId "5000572"]
[WhiteElo "2057"]
[BlackElo "2369"]
[Result "0-1"]
[Round "02"]
[TimeControl "180+1"]
[Date "2022.05.11"]
[WhiteClock "0:00:24"]
[BlackClock "0:00:25"]

1. Nf3 {[%clk 0:03:00]}  e6 {[%clk 0:03:00]} 2. b3 {[%clk 0:02:59]}  f5 {[%clk 0:03:00]} 3. Bb2 {[%clk 0:02:59]}  Nf6 {[%clk 0:03:01]} 4. c4 {[%clk 0:03:00]}  Be7 {[%clk 0:03:01]} 5. g3 {[%clk 0:03:01]}  O-O {[%clk 0:03:01]} 6. Bg2 {[%clk 0:03:02]}  d6 {[%clk 0:03:00]} 7. O-O {[%clk 0:03:03]}  e5 {[%clk 0:02:58]} 8. d3 {[%clk 0:03:03]}  a5 {[%clk 0:02:57]} 9. a3 {[%clk 0:03:04]}  Nc6 {[%clk 0:02:56]} 10. Nc3 {[%clk 0:03:03]}  Qe8 {[%clk 0:02:56]} 11. Nb5 {[%clk 0:02:58]}  Bd8 {[%clk 0:02:56]} 12. d4 {[%clk 0:02:55]}  e4 {[%clk 0:02:54]} 13. Ne1 {[%clk 0:02:53]}  d5 {[%clk 0:02:53]} 14. cxd5 {[%clk 0:02:51]}  Ne7 {[%clk 0:02:52]} 15. d6 {[%clk 0:02:49]}  Qxb5 {[%clk 0:02:49]} 16. dxe7 {[%clk 0:02:49]}  Bxe7 {[%clk 0:02:50]} 17. a4 {[%clk 0:02:46]}  Qb6 {[%clk 0:02:40]} 18. Rc1 {[%clk 0:02:42]}  Be6 {[%clk 0:02:37]} 19. d5 {[%clk 0:02:27]}  Nxd5 {[%clk 0:02:29]} 20. Bd4 {[%clk 0:02:27]}  Qa6 {[%clk 0:02:26]} 21. Qc2 {[%clk 0:02:21]}  Rad8 {[%clk 0:02:21]} 22. Qb2 {[%clk 0:02:21]}  Bf6 {[%clk 0:02:19]} 23. Nc2 {[%clk 0:02:22]}  g6 {[%clk 0:02:06]} 24. Bxf6 {[%clk 0:02:18]}  Nxf6 {[%clk 0:02:07]} 25. Nd4 {[%clk 0:02:19]}  Bf7 {[%clk 0:02:06]} 26. Rxc7 {[%clk 0:02:19]}  Qb6 {[%clk 0:02:03]} 27. Nb5 {[%clk 0:02:11]}  Nd5 {[%clk 0:02:01]} 28. Rcc1 {[%clk 0:02:05]}  Be8 {[%clk 0:01:56]} 29. Nd4 {[%clk 0:01:54]}  Bxa4 {[%clk 0:01:49]} 30. Rfd1 {[%clk 0:01:42]}  Nf6 {[%clk 0:01:21]} 31. e3 {[%clk 0:01:33]}  Be8 {[%clk 0:01:12]} 32. Qc3 {[%clk 0:01:29]}  Bf7 {[%clk 0:01:10]} 33. Qc5 {[%clk 0:01:17]}  Qxc5 {[%clk 0:01:05]} 34. Rxc5 {[%clk 0:01:18]}  Bxb3 {[%clk 0:01:03]} 35. Rb1 {[%clk 0:01:12]}  a4 {[%clk 0:01:00]} 36. Bf1 {[%clk 0:01:08]}  Rc8 {[%clk 0:00:54]} 37. Nxb3 {[%clk 0:01:06]}  axb3 {[%clk 0:00:53]} 38. Rxc8 {[%clk 0:01:07]}  Rxc8 {[%clk 0:00:53]} 39. Rxb3 {[%clk 0:01:08]}  Rc7 {[%clk 0:00:50]} 40. Rb6 {[%clk 0:01:06]}  Ng4 {[%clk 0:00:49]} 41. h3 {[%clk 0:00:59]}  Ne5 {[%clk 0:00:48]} 42. Bg2 {[%clk 0:01:00]}  Rc1+ {[%clk 0:00:46]} 43. Kh2 {[%clk 0:00:58]}  Rc2 {[%clk 0:00:46]} 44. Kg1 {[%clk 0:00:59]}  Rc1+ {[%clk 0:00:45]} 45. Kh2 {[%clk 0:00:59]}  Nd3 {[%clk 0:00:44]} 46. f3 {[%clk 0:00:55]}  Rc2 {[%clk 0:00:43]} 47. Kg1 {[%clk 0:00:53]}  Ne1 {[%clk 0:00:43]} 48. Bh1 {[%clk 0:00:35]}  Nxf3+ {[%clk 0:00:40]} 49. Bxf3 {[%clk 0:00:35]}  exf3 {[%clk 0:00:41]} 50. Rxb7 {[%clk 0:00:35]}  Rg2+ {[%clk 0:00:40]} 51. Kf1 {[%clk 0:00:35]}  Rxg3 {[%clk 0:00:41]} 52. h4 {[%clk 0:00:35]}  Rh3 {[%clk 0:00:41]} 53. Kf2 {[%clk 0:00:36]}  h6 {[%clk 0:00:40]} 54. Ra7 {[%clk 0:00:33]}  g5 {[%clk 0:00:34]} 55. hxg5 {[%clk 0:00:34]}  hxg5 {[%clk 0:00:34]} 56. Ra5 {[%clk 0:00:35]}  g4 {[%clk 0:00:34]} 57. Rxf5 {[%clk 0:00:35]}  Rh2+ {[%clk 0:00:34]} 58. Kg1 {[%clk 0:00:34]}  Rg2+ {[%clk 0:00:34]} 59. Kf1 {[%clk 0:00:34]}  Kg7 {[%clk 0:00:34]} 60. e4 {[%clk 0:00:34]}  Kg6 {[%clk 0:00:35]} 61. Rf8 {[%clk 0:00:35]}  Kg5 {[%clk 0:00:34]} 62. e5 {[%clk 0:00:35]}  Re2 {[%clk 0:00:34]} 63. Re8 {[%clk 0:00:32]}  Kf4 {[%clk 0:00:32]} 64. e6 {[%clk 0:00:33]}  Kg3 {[%clk 0:00:27]} 65. e7 {[%clk 0:00:33]}  Re6 {[%clk 0:00:25]} 66. Rg8 {[%clk 0:00:24]}  Rxe7 {[%clk 0:00:25]} 0-1


[Site "https://www.chess.com"]

[Event "Titled Tuesday Blitz May 10 Early 2022"]
[White "Kozak, Adam"]
[Black "Aggelis, Nikolaos"]
[WhiteFideId "753246"]
[BlackFideId "4213220"]
[WhiteElo "2459"]
[BlackElo "2154"]
[Result "1-0"]
[Round "02"]
[TimeControl "180+1"]
[Date "2022.05.10"]
[WhiteClock "0:00:09"]
[BlackClock "0:00:06"]

1. e4 {[%clk 0:03:00]}  c5 {[%clk 0:02:57]} 2. Nf3 {[%clk 0:02:59]}  e6 {[%clk 0:02:56]} 3. c4 {[%clk 0:02:57]}  d5 {[%clk 0:02:51]} 4. exd5 {[%clk 0:02:57]}  exd5 {[%clk 0:02:52]} 5. d4 {[%clk 0:02:57]}  Nf6 {[%clk 0:02:50]} 6. cxd5 {[%clk 0:02:55]}  Nxd5 {[%clk 0:02:49]} 7. Bb5+ {[%clk 0:02:55]}  Nc6 {[%clk 0:02:45]} 8. O-O {[%clk 0:02:54]}  Be7 {[%clk 0:02:44]} 9. dxc5 {[%clk 0:02:54]}  O-O {[%clk 0:02:43]} 10. Bc4 {[%clk 0:02:45]}  Be6 {[%clk 0:02:42]} 11. Bxd5 {[%clk 0:02:46]}  Qxd5 {[%clk 0:02:41]} 12. Be3 {[%clk 0:02:45]}  Rfd8 {[%clk 0:02:37]} 13. Qxd5 {[%clk 0:02:44]}  Rxd5 {[%clk 0:02:38]} 14. Nc3 {[%clk 0:02:41]}  Rh5 {[%clk 0:02:38]} 15. Ne4 {[%clk 0:02:39]}  Bd5 {[%clk 0:02:33]} 16. Ng3 {[%clk 0:02:39]}  Bxf3 {[%clk 0:02:32]} 17. gxf3 {[%clk 0:02:36]}  Rd5 {[%clk 0:02:33]} 18. Rfc1 {[%clk 0:02:29]}  f5 {[%clk 0:02:28]} 19. Ne2 {[%clk 0:02:27]}  Bf6 {[%clk 0:02:25]} 20. Rab1 {[%clk 0:02:22]}  a5 {[%clk 0:02:16]} 21. b3 {[%clk 0:02:08]}  Rad8 {[%clk 0:02:05]} 22. a3 {[%clk 0:02:04]}  Nd4 {[%clk 0:02:01]} 23. Bxd4 {[%clk 0:01:37]}  Bxd4 {[%clk 0:02:02]} 24. b4 {[%clk 0:01:37]}  axb4 {[%clk 0:01:49]} 25. axb4 {[%clk 0:01:38]}  Be5 {[%clk 0:01:49]} 26. b5 {[%clk 0:01:32]}  Rc8 {[%clk 0:01:48]} 27. c6 {[%clk 0:01:31]}  bxc6 {[%clk 0:01:49]} 28. bxc6 {[%clk 0:01:31]}  Kf7 {[%clk 0:01:46]} 29. Rb7+ {[%clk 0:01:19]}  Rc7 {[%clk 0:01:44]} 30. Rc4 {[%clk 0:00:48]}  Ke6 {[%clk 0:01:34]} 31. Nc3 {[%clk 0:00:43]}  Rd8 {[%clk 0:01:09]} 32. Rxc7 {[%clk 0:00:33]}  Bxc7 {[%clk 0:01:08]} 33. Nb5 {[%clk 0:00:34]}  Rc8 {[%clk 0:01:05]} 34. Rc2 {[%clk 0:00:32]}  Kd5 {[%clk 0:01:01]} 35. Kg2 {[%clk 0:00:30]}  Bf4 {[%clk 0:00:49]} 36. h4 {[%clk 0:00:28]}  h5 {[%clk 0:00:37]} 37. c7 {[%clk 0:00:27]}  g6 {[%clk 0:00:37]} 38. Ra2 {[%clk 0:00:18]}  Kc4 {[%clk 0:00:30]} 39. Rb2 {[%clk 0:00:17]}  Be5 {[%clk 0:00:25]} 40. Rb1 {[%clk 0:00:16]}  Bf4 {[%clk 0:00:15]} 41. Kh3 {[%clk 0:00:16]}  Kc5 {[%clk 0:00:12]} 42. Rb2 {[%clk 0:00:13]}  Be5 {[%clk 0:00:11]} 43. Rb1 {[%clk 0:00:12]}  Bf4 {[%clk 0:00:11]} 44. Rb3 {[%clk 0:00:05]}  Be5 {[%clk 0:00:10]} 45. Na3 {[%clk 0:00:02]}  Rxc7 {[%clk 0:00:09]} 46. Rb5+ {[%clk 0:00:03]}  Kd4 {[%clk 0:00:05]} 47. Rb6 {[%clk 0:00:03]}  Rc3 {[%clk 0:00:05]} 48. Nb5+ {[%clk 0:00:03]}  Kd5 {[%clk 0:00:03]} 49. Nxc3+ {[%clk 0:00:03]}  Bxc3 {[%clk 0:00:04]} 50. Rxg6 {[%clk 0:00:03]}  Be1 {[%clk 0:00:05]} 51. Rg5 {[%clk 0:00:03]}  Bxf2 {[%clk 0:00:06]} 52. Rxf5+ {[%clk 0:00:04]}  Ke6 {[%clk 0:00:05]} 53. Rxh5 {[%clk 0:00:05]}  Be3 {[%clk 0:00:06]} 54. Kg4 {[%clk 0:00:05]}  Kf6 {[%clk 0:00:06]} 55. Rf5+ {[%clk 0:00:06]}  Kg6 {[%clk 0:00:06]} 56. h5+ {[%clk 0:00:07]}  Kh6 {[%clk 0:00:07]} 57. Rd5 {[%clk 0:00:08]}  Bd2 {[%clk 0:00:07]} 58. Rd6+ {[%clk 0:00:09]}  Kh7 {[%clk 0:00:06]} 59. Rxd2 {[%clk 0:00:09]} 1-0


[Site "https://www.chess.com"]

[Event "Titled Tuesday Blitz May 10 Early 2022"]
[White "Koziorowicz, Michal"]
[Black "Onslow, Alfie"]
[WhiteFideId "21809194"]
[BlackFideId "436976"]
[WhiteElo "2219"]
[BlackElo "1885"]
[Result "1-0"]
[Round "02"]
[TimeControl "180+1"]
[Date "2022.05.11"]
[WhiteClock "0:01:19"]
[BlackClock "0:00:36"]

1. e4 {[%clk 0:02:37]}  c5 {[%clk 0:01:45]} 2. Nf3 {[%clk 0:02:35]}  Nc6 {[%clk 0:01:39]} 3. Bb5 {[%clk 0:02:35]}  g6 {[%clk 0:01:39]} 4. Bxc6 {[%clk 0:02:34]}  dxc6 {[%clk 0:01:38]} 5. O-O {[%clk 0:02:34]}  Bg7 {[%clk 0:01:38]} 6. Re1 {[%clk 0:02:33]}  e5 {[%clk 0:01:38]} 7. d3 {[%clk 0:02:32]}  Ne7 {[%clk 0:01:39]} 8. Be3 {[%clk 0:02:30]}  b6 {[%clk 0:01:37]} 9. Qd2 {[%clk 0:02:31]}  O-O {[%clk 0:01:35]} 10. Nc3 {[%clk 0:02:30]}  Bg4 {[%clk 0:01:33]} 11. Nh4 {[%clk 0:02:08]}  Qd6 {[%clk 0:01:26]} 12. h3 {[%clk 0:02:05]}  Be6 {[%clk 0:01:26]} 13. Ne2 {[%clk 0:01:57]}  c4 {[%clk 0:01:18]} 14. d4 {[%clk 0:01:55]}  Rfd8 {[%clk 0:01:15]} 15. c3 {[%clk 0:01:54]}  c5 {[%clk 0:01:08]} 16. d5 {[%clk 0:01:53]}  Bd7 {[%clk 0:01:07]} 17. Bh6 {[%clk 0:01:40]}  b5 {[%clk 0:01:06]} 18. Ng3 {[%clk 0:01:38]}  f6 {[%clk 0:01:03]} 19. Bxg7 {[%clk 0:01:33]}  Kxg7 {[%clk 0:01:04]} 20. Rad1 {[%clk 0:01:30]}  Qa6 {[%clk 0:00:54]} 21. a3 {[%clk 0:01:27]}  Nc8 {[%clk 0:00:54]} 22. f4 {[%clk 0:01:25]}  Nd6 {[%clk 0:00:42]} 23. fxe5 {[%clk 0:01:23]}  fxe5 {[%clk 0:00:43]} 24. Qg5 {[%clk 0:01:24]}  Re8 {[%clk 0:00:44]} 25. Nh5+ {[%clk 0:01:19]}  Kg8 {[%clk 0:00:38]} 26. Nf6+ {[%clk 0:01:19]}  Kg7 {[%clk 0:00:36]} 27. Nxd7 {[%clk 0:01:19]} 1-0


[Site "https://www.chess.com"]

[Event "Titled Tuesday Blitz May 10 Early 2022"]
[White "Lamaze, Simon"]
[Black "Bashirli, Saadat"]
[WhiteFideId "36069264"]
[BlackFideId "13429990"]
[WhiteElo "1999"]
[BlackElo "1173"]
[Result "1-0"]
[Round "02"]
[TimeControl "180+1"]
[Date "2022.05.11"]
[WhiteClock "0:01:24"]
[BlackClock "0:00:05"]

1. d4 {[%clk 0:03:00]}  d5 {[%clk 0:02:59]} 2. c4 {[%clk 0:03:00]}  e6 {[%clk 0:02:59]} 3. Nf3 {[%clk 0:02:58]}  c6 {[%clk 0:02:56]} 4. g3 {[%clk 0:02:57]}  Nf6 {[%clk 0:02:56]} 5. Bg2 {[%clk 0:02:57]}  dxc4 {[%clk 0:02:56]} 6. Ne5 {[%clk 0:02:53]}  Bd6 {[%clk 0:02:49]} 7. Nxc4 {[%clk 0:02:53]}  O-O {[%clk 0:02:48]} 8. Nxd6 {[%clk 0:02:52]}  Qxd6 {[%clk 0:02:49]} 9. O-O {[%clk 0:02:53]}  Nbd7 {[%clk 0:02:43]} 10. b3 {[%clk 0:02:48]}  Nb6 {[%clk 0:02:40]} 11. Ba3 {[%clk 0:02:47]}  Qd8 {[%clk 0:02:33]} 12. Bxf8 {[%clk 0:02:35]}  Kxf8 {[%clk 0:02:33]} 13. Nc3 {[%clk 0:02:31]}  Bd7 {[%clk 0:02:31]} 14. Qd2 {[%clk 0:02:29]}  Qc7 {[%clk 0:02:26]} 15. Qf4 {[%clk 0:02:29]}  Qxf4 {[%clk 0:02:24]} 16. gxf4 {[%clk 0:02:29]}  Rd8 {[%clk 0:02:22]} 17. e3 {[%clk 0:02:29]}  Nbd5 {[%clk 0:02:15]} 18. Nxd5 {[%clk 0:02:27]}  exd5 {[%clk 0:02:15]} 19. b4 {[%clk 0:02:25]}  Bf5 {[%clk 0:02:14]} 20. Rfc1 {[%clk 0:02:24]}  Bd3 {[%clk 0:02:13]} 21. a4 {[%clk 0:02:24]}  a6 {[%clk 0:02:12]} 22. Bf1 {[%clk 0:02:23]}  Bxf1 {[%clk 0:02:07]} 23. Kxf1 {[%clk 0:02:24]}  Ne4 {[%clk 0:02:08]} 24. Ke2 {[%clk 0:02:17]}  Nd6 {[%clk 0:02:04]} 25. Kd3 {[%clk 0:02:16]}  f5 {[%clk 0:01:58]} 26. h4 {[%clk 0:02:10]}  Nc4 {[%clk 0:01:57]} 27. Rxc4 {[%clk 0:02:10]}  dxc4+ {[%clk 0:01:57]} 28. Kxc4 {[%clk 0:02:10]}  Rd5 {[%clk 0:01:56]} 29. Rb1 {[%clk 0:02:07]}  b5+ {[%clk 0:01:35]} 30. axb5 {[%clk 0:02:05]}  axb5+ {[%clk 0:01:34]} 31. Kc3 {[%clk 0:02:05]}  Rd7 {[%clk 0:01:31]} 32. Ra1 {[%clk 0:02:04]}  Rc7 {[%clk 0:01:29]} 33. Ra8+ {[%clk 0:02:03]}  Kf7 {[%clk 0:01:28]} 34. h5 {[%clk 0:02:01]}  g6 {[%clk 0:01:24]} 35. h6 {[%clk 0:02:00]}  Kf6 {[%clk 0:01:22]} 36. Rg8 {[%clk 0:01:57]}  Rd7 {[%clk 0:01:13]} 37. Rc8 {[%clk 0:01:56]}  Rd6 {[%clk 0:01:11]} 38. Rc7 {[%clk 0:01:53]}  g5 {[%clk 0:01:08]} 39. fxg5+ {[%clk 0:01:53]}  Kxg5 {[%clk 0:01:08]} 40. Rxh7 {[%clk 0:01:52]}  Kg6 {[%clk 0:00:58]} 41. Rh8 {[%clk 0:01:50]}  Rf6 {[%clk 0:00:52]} 42. Kd3 {[%clk 0:01:45]}  f4 {[%clk 0:00:46]} 43. e4 {[%clk 0:01:37]}  Rf7 {[%clk 0:00:35]} 44. e5 {[%clk 0:01:35]}  Ra7 {[%clk 0:00:35]} 45. Ke4 {[%clk 0:01:35]}  Ra4 {[%clk 0:00:17]} 46. e6 {[%clk 0:01:34]}  Rxb4 {[%clk 0:00:16]} 47. e7 {[%clk 0:01:35]}  c5 {[%clk 0:00:14]} 48. e8=Q+ {[%clk 0:01:35]}  Kf6 {[%clk 0:00:12]} 49. Rf8+ {[%clk 0:01:33]}  Kg5 {[%clk 0:00:12]} 50. Qe7+ {[%clk 0:01:33]}  Kg4 {[%clk 0:00:10]} 51. Rg8+ {[%clk 0:01:32]}  Kh3 {[%clk 0:00:09]} 52. Qe6+ {[%clk 0:01:27]}  Kh2 {[%clk 0:00:09]} 53. Qg4 {[%clk 0:01:27]}  Rxd4+ {[%clk 0:00:09]} 54. Ke5 {[%clk 0:01:28]}  f3 {[%clk 0:00:05]} 55. Qh5+ {[%clk 0:01:24]} 1-0


[Site "https://www.chess.com"]

[Event "Titled Tuesday Blitz May 10 Early 2022"]
[White "Lewicki, Miroslaw"]
[Black "Santos Ruiz, Miguel"]
[WhiteFideId "1113380"]
[BlackFideId "22291482"]
[WhiteElo "2283"]
[BlackElo "2486"]
[Result "1/2-1/2"]
[Round "02"]
[TimeControl "180+1"]
[Date "2022.05.11"]
[WhiteClock "0:00:11"]
[BlackClock "0:00:16"]

1. e4 {[%clk 0:02:57]}  c5 {[%clk 0:02:59]} 2. Nf3 {[%clk 0:02:57]}  d6 {[%clk 0:02:59]} 3. Nc3 {[%clk 0:02:58]}  e6 {[%clk 0:02:57]} 4. g3 {[%clk 0:02:55]}  a6 {[%clk 0:02:56]} 5. Bg2 {[%clk 0:02:56]}  b5 {[%clk 0:02:57]} 6. O-O {[%clk 0:02:56]}  Bb7 {[%clk 0:02:57]} 7. d4 {[%clk 0:02:57]}  cxd4 {[%clk 0:02:55]} 8. Nxd4 {[%clk 0:02:56]}  Nf6 {[%clk 0:02:53]} 9. Be3 {[%clk 0:02:56]}  Qc7 {[%clk 0:02:49]} 10. f4 {[%clk 0:02:55]}  Be7 {[%clk 0:02:47]} 11. Qe2 {[%clk 0:02:51]}  Nbd7 {[%clk 0:02:47]} 12. a3 {[%clk 0:02:45]}  Rc8 {[%clk 0:02:42]} 13. Rad1 {[%clk 0:02:45]}  O-O {[%clk 0:02:41]} 14. g4 {[%clk 0:02:39]}  Nc5 {[%clk 0:02:35]} 15. Bf2 {[%clk 0:02:39]}  d5 {[%clk 0:02:33]} 16. exd5 {[%clk 0:02:31]}  Nxd5 {[%clk 0:02:24]} 17. Nxd5 {[%clk 0:02:30]}  Bxd5 {[%clk 0:02:24]} 18. Bxd5 {[%clk 0:02:30]}  exd5 {[%clk 0:02:25]} 19. Nf5 {[%clk 0:02:31]}  Rfe8 {[%clk 0:02:20]} 20. Rxd5 {[%clk 0:02:30]}  Bf8 {[%clk 0:02:17]} 21. Re5 {[%clk 0:02:21]}  Rxe5 {[%clk 0:02:10]} 22. fxe5 {[%clk 0:02:22]}  Ne6 {[%clk 0:02:03]} 23. c3 {[%clk 0:02:04]}  Rd8 {[%clk 0:01:56]} 24. h4 {[%clk 0:01:35]}  Qc6 {[%clk 0:01:35]} 25. Bg3 {[%clk 0:01:20]}  Bc5+ {[%clk 0:01:33]} 26. Kh2 {[%clk 0:01:20]}  Qd5 {[%clk 0:01:16]} 27. Nd6 {[%clk 0:01:17]}  f6 {[%clk 0:01:15]} 28. Rd1 {[%clk 0:01:15]}  Qb3 {[%clk 0:01:08]} 29. exf6 {[%clk 0:01:12]}  gxf6 {[%clk 0:01:06]} 30. Rd2 {[%clk 0:00:50]}  Bxd6 {[%clk 0:00:59]} 31. Bxd6 {[%clk 0:00:43]}  Qc4 {[%clk 0:00:47]} 32. Qxc4 {[%clk 0:00:43]}  bxc4 {[%clk 0:00:48]} 33. Kg3 {[%clk 0:00:42]}  Nc5 {[%clk 0:00:48]} 34. Kf3 {[%clk 0:00:36]}  Nd3 {[%clk 0:00:43]} 35. Bg3 {[%clk 0:00:31]}  Ne5+ {[%clk 0:00:38]} 36. Ke2 {[%clk 0:00:31]}  Rxd2+ {[%clk 0:00:39]} 37. Kxd2 {[%clk 0:00:32]}  Nxg4 {[%clk 0:00:39]} 38. b3 {[%clk 0:00:25]}  cxb3 {[%clk 0:00:37]} 39. c4 {[%clk 0:00:26]}  Ne3 {[%clk 0:00:32]} 40. Kc3 {[%clk 0:00:15]}  b2 {[%clk 0:00:32]} 41. Kxb2 {[%clk 0:00:16]}  Nxc4+ {[%clk 0:00:32]} 42. Kb3 {[%clk 0:00:17]}  Ne3 {[%clk 0:00:28]} 43. Ka4 {[%clk 0:00:12]}  Kf7 {[%clk 0:00:28]} 44. Ka5 {[%clk 0:00:10]}  Nc4+ {[%clk 0:00:28]} 45. Kb4 {[%clk 0:00:10]}  Ne3 {[%clk 0:00:20]} 46. Ka5 {[%clk 0:00:10]}  Nc4+ {[%clk 0:00:18]} 47. Kb4 {[%clk 0:00:11]}  Ne3 {[%clk 0:00:16]} 48. Ka5 {[%clk 0:00:11]} 1/2-1/2


[Site "https://www.chess.com"]

[Event "Titled Tuesday Blitz May 10 Early 2022"]
[White "Li, Xueyi"]
[Black "Stribuk, Artiom"]
[WhiteFideId "8605912"]
[BlackFideId "13515659"]
[WhiteElo "2091"]
[BlackElo "2259"]
[Result "0-1"]
[Round "02"]
[TimeControl "180+1"]
[Date "2022.05.11"]
[WhiteClock "0:01:03"]
[BlackClock "0:01:05"]

1. d4 {[%clk 0:03:00]}  Nf6 {[%clk 0:02:59]} 2. c4 {[%clk 0:02:59]}  c5 {[%clk 0:02:59]} 3. d5 {[%clk 0:02:59]}  b5 {[%clk 0:03:00]} 4. cxb5 {[%clk 0:02:59]}  a6 {[%clk 0:03:00]} 5. e3 {[%clk 0:02:56]}  g6 {[%clk 0:02:42]} 6. Nc3 {[%clk 0:02:53]}  Bg7 {[%clk 0:02:42]} 7. Nf3 {[%clk 0:02:52]}  O-O {[%clk 0:02:41]} 8. bxa6 {[%clk 0:02:36]}  Bxa6 {[%clk 0:02:37]} 9. Be2 {[%clk 0:02:24]}  d6 {[%clk 0:02:32]} 10. O-O {[%clk 0:02:20]}  Nbd7 {[%clk 0:02:27]} 11. Rb1 {[%clk 0:02:11]}  Qa5 {[%clk 0:02:07]} 12. a3 {[%clk 0:02:00]}  Rfb8 {[%clk 0:02:03]} 13. e4 {[%clk 0:01:57]}  Ng4 {[%clk 0:01:47]} 14. Re1 {[%clk 0:01:38]}  Bxc3 {[%clk 0:01:27]} 15. Bxa6 {[%clk 0:01:23]}  Bxe1 {[%clk 0:01:23]} 16. Nxe1 {[%clk 0:01:21]}  Rxa6 {[%clk 0:01:11]} 17. Bd2 {[%clk 0:01:20]}  Qa4 {[%clk 0:01:11]} 18. Qxg4 {[%clk 0:01:20]}  Nf6 {[%clk 0:01:12]} 19. Qe2 {[%clk 0:01:03]}  Qxe4 {[%clk 0:01:05]} 0-1


[Site "https://www.chess.com"]

[Event "Titled Tuesday Blitz May 10 Early 2022"]
[White "Lomaia, Diana"]
[Black "Harshavardhan G B"]
[WhiteFideId "13612476"]
[BlackFideId "25059009"]
[WhiteElo "1744"]
[BlackElo "1831"]
[Result "0-1"]
[Round "02"]
[TimeControl "180+1"]
[Date "2022.05.11"]
[WhiteClock "0:00:07"]
[BlackClock "0:00:17"]

1. d4 {[%clk 0:03:00]}  Nf6 {[%clk 0:02:58]} 2. c4 {[%clk 0:03:01]}  e5 {[%clk 0:02:57]} 3. dxe5 {[%clk 0:03:00]}  Ng4 {[%clk 0:02:57]} 4. Bf4 {[%clk 0:03:00]}  Nc6 {[%clk 0:02:53]} 5. Nf3 {[%clk 0:02:55]}  Bb4+ {[%clk 0:02:54]} 6. Nbd2 {[%clk 0:02:54]}  Qe7 {[%clk 0:02:54]} 7. a3 {[%clk 0:02:51]}  Ngxe5 {[%clk 0:02:52]} 8. Nxe5 {[%clk 0:02:49]}  Nxe5 {[%clk 0:02:53]} 9. e3 {[%clk 0:02:49]}  Bd6 {[%clk 0:02:52]} 10. Nf3 {[%clk 0:02:25]}  Nxc4 {[%clk 0:02:43]} 11. Bxc4 {[%clk 0:01:51]}  Bxf4 {[%clk 0:02:37]} 12. Qd4 {[%clk 0:01:37]}  Bh6 {[%clk 0:02:29]} 13. O-O {[%clk 0:01:33]}  O-O {[%clk 0:02:24]} 14. e4 {[%clk 0:01:18]}  d6 {[%clk 0:02:21]} 15. Qd3 {[%clk 0:01:03]}  Be6 {[%clk 0:02:15]} 16. Bd5 {[%clk 0:00:55]}  c6 {[%clk 0:02:05]} 17. Bc4 {[%clk 0:00:42]}  Rad8 {[%clk 0:01:54]} 18. Rfe1 {[%clk 0:00:39]}  Rfe8 {[%clk 0:01:48]} 19. b4 {[%clk 0:00:37]}  Bf4 {[%clk 0:01:27]} 20. Rad1 {[%clk 0:00:34]}  h6 {[%clk 0:01:23]} 21. h3 {[%clk 0:00:33]}  Qd7 {[%clk 0:01:04]} 22. Nd4 {[%clk 0:00:31]}  Bxc4 {[%clk 0:01:00]} 23. Qxc4 {[%clk 0:00:32]}  d5 {[%clk 0:00:55]} 24. exd5 {[%clk 0:00:32]}  Rxe1+ {[%clk 0:00:56]} 25. Rxe1 {[%clk 0:00:33]}  Qxd5 {[%clk 0:00:57]} 26. Qxd5 {[%clk 0:00:31]}  Rxd5 {[%clk 0:00:58]} 27. Nb3 {[%clk 0:00:21]}  b6 {[%clk 0:00:43]} 28. g3 {[%clk 0:00:22]}  Bd6 {[%clk 0:00:42]} 29. Re3 {[%clk 0:00:21]}  c5 {[%clk 0:00:40]} 30. bxc5 {[%clk 0:00:19]}  Bxc5 {[%clk 0:00:37]} 31. Nxc5 {[%clk 0:00:19]}  Rxc5 {[%clk 0:00:38]} 32. Re8+ {[%clk 0:00:19]}  Kh7 {[%clk 0:00:32]} 33. Re7 {[%clk 0:00:20]}  Ra5 {[%clk 0:00:32]} 34. Re3 {[%clk 0:00:20]}  Kg6 {[%clk 0:00:27]} 35. Kg2 {[%clk 0:00:21]}  Ra4 {[%clk 0:00:27]} 36. Rd3 {[%clk 0:00:21]}  f6 {[%clk 0:00:26]} 37. Kf3 {[%clk 0:00:22]}  a5 {[%clk 0:00:24]} 38. Ke2 {[%clk 0:00:21]}  b5 {[%clk 0:00:24]} 39. Rb3 {[%clk 0:00:21]}  b4 {[%clk 0:00:23]} 40. axb4 {[%clk 0:00:21]}  Rxb4 {[%clk 0:00:23]} 41. Ra3 {[%clk 0:00:22]}  a4 {[%clk 0:00:23]} 42. Ra2 {[%clk 0:00:20]}  Kf5 {[%clk 0:00:23]} 43. Ra3 {[%clk 0:00:20]}  Ke4 {[%clk 0:00:22]} 44. f3+ {[%clk 0:00:19]}  Kd4 {[%clk 0:00:22]} 45. Rd3+ {[%clk 0:00:19]}  Kc4 {[%clk 0:00:22]} 46. Rd8 {[%clk 0:00:19]}  Rb2+ {[%clk 0:00:20]} 47. Ke3 {[%clk 0:00:19]}  Rb7 {[%clk 0:00:20]} 48. Ra8 {[%clk 0:00:18]}  Kb3 {[%clk 0:00:20]} 49. Kd3 {[%clk 0:00:17]}  a3 {[%clk 0:00:20]} 50. Rc8 {[%clk 0:00:12]}  a2 {[%clk 0:00:19]} 51. Rc1 {[%clk 0:00:10]}  Kb2 {[%clk 0:00:19]} 52. Rc2+ {[%clk 0:00:10]}  Ka3 {[%clk 0:00:20]} 53. Rc1 {[%clk 0:00:08]}  Rb1 {[%clk 0:00:17]} 54. Rc3+ {[%clk 0:00:07]}  Rb3 {[%clk 0:00:17]} 0-1


[Site "https://www.chess.com"]